[Event "FIDE WCCC Open-10 2024"]
[Site "Montesilvano"]
[Date "2024.11.22"]
[Round "7.15"]
[White "Sander, Tino"]
[Black "Vukashinovikj, Jovan"]
[Result "1-0"]
[Annotator "NA RC"]
[ECO "C42"]
[WhiteElo "1736"]
[BlackElo "1454"]
[PlyCount "51"]
[EventDate "2024.11.18"]
[EventType "swiss"]
[EventCountry "ITA"]
[SourceTitle "playchess.com"]
[Source "ChessBase"]
[SourceQuality "1"]
[TimeControl "5400+30"]

1. e4 {[%emt 0:00:02]} e5 {[%emt 0:00:04]} 2. Nf3 {[%emt 0:00:13]} Nf6 {[%emt 0:00:11]} 3. Nxe5 {[%emt 0:00:10]} d6 {[%emt 0:00:20]} 4. Nf3 {[%emt 0:00:09]} Nxe4 {[%emt 0:00:14]} 5. Nc3 {[%emt 0:00:17]} Nxc3 {[%emt 0:01:08]} 6. dxc3 {[%emt 0:00:12]} Be7 {[%emt 0:00:44]} 7. Be3 {[%emt 0:00:38]} Nc6 {[%emt 0:02:16]} 8. Bd3 {[%emt 0:00:42]} Be6 {[%emt 0:01:15]} 9. Qe2 {[%emt 1:32:37]} Qd7 {[%emt 0:07:17]} 10. O-O-O {[%emt 0:00:00]} O-O-O {[%emt 1:22:01]} 11. Bb5 {[%emt 0:00:00]} Qe8 {[%emt 0:00:30]} 12. Bxa7 {[%emt 0:00:00]} b6 {[%emt 0:00:00]} 13. Ba6+ {[%emt 0:00:00]} Kd7 {[%emt 0:00:00]} 14. Qb5 {[%emt 0:00:00]} Qf8 {[%emt 0:00:00]} 15. Ne5+ {[%emt 0:00:00]} Ke8 {[%emt 0:00:00]} 16. Qxc6+ {[%emt 0:00:00]} Bd7 {[%emt 0:00:00]} 17. Nxd7 {[%emt 0:00:00]} Rxd7 {[%emt 0:00:00]} 18. Bb5 {[%emt 0:00:00]} Bg5+ {[%emt 0:00:00]} 19. Kb1 {[%emt 0:00:00]} Qe7 {[%emt 0:00:00]} 20. Rhe1 {[%emt 0:00:00]} Qxe1 {[%emt 0:00:00]} 21. Rxe1+ {[%emt 0:00:00]} Kf8 {[%emt 0:00:00]} 22. Qxd7 {[%emt 0:00:00]} g6 {[%emt 0:00:00]} 23. Re8+ {[%emt 0:00:00]} Kg7 {[%emt 0:06:00]} 24. Rxh8 {[%emt 0:00:00]} h6 {[%emt 0:00:00]} 25. Qxf7+ {[%emt 0:00:00]} Kxh8 {[%emt 0:00:00]} 26. Bxb6 {[%emt 0:00:00]} 1-0

[Event "FIDE WCCC Open-10 2024"]
[Site "Montesilvano"]
[Date "2024.11.22"]
[Round "7.16"]
[White "Zhou, Guoyu"]
[Black "Andre, Tomas"]
[Result "1-0"]
[Annotator "NA RC"]
[ECO "E30"]
[WhiteElo "1809"]
[BlackElo "1928"]
[PlyCount "59"]
[EventDate "2024.11.18"]
[EventType "swiss"]
[EventCountry "ITA"]
[SourceTitle "playchess.com"]
[Source "ChessBase"]
[SourceQuality "1"]
[TimeControl "5400+30"]

1. d4 {[%emt 0:00:09]} Nf6 {[%emt 0:00:24]} 2. c4 {[%emt 0:00:19]} e6 {[%emt 0:00:15]} 3. Nc3 {[%emt 0:00:21]} Bb4 {[%emt 0:00:14]} 4. Bg5 {[%emt 0:00:44]} c5 {[%emt 0:00:15]} 5. Nf3 {[%emt 0:00:48]} h6 {[%emt 0:00:26]} 6. Bh4 {[%emt 0:01:15]} g5 {[%emt 0:01:15]} 7. Bg3 {[%emt 0:01:06]} g4 {[%emt 0:00:47]} 8. Ne5 {[%emt 0:24:14]} Ne4 {[%emt 0:02:42]} 9. Qd3 {[%emt 0:02:29]} f5 {[%emt 0:01:12]} 10. f3 {[%emt 0:03:16]} Nxg3 {[%emt 0:02:49]} 11. hxg3 {[%emt 0:00:02]} d6 {[%emt 0:10:21]} 12. Ng6 {[%emt 0:03:46]} Rg8 {[%emt 0:00:03]} 13. Nf4 {[%emt 0:04:42]} cxd4 {[%emt 0:01:38]} 14. Qxd4 {[%emt 0:00:26]} Nc6 {[%emt 0:00:13]} 15. Qd2 {[%emt 0:01:28]} Ne5 {[%emt 0:03:50]} 16. Rxh6 {[%emt 0:06:30]} Qg5 {[%emt 0:12:06]} 17. Rh5 {[%emt 0:07:37]} Qf6 {[%emt 0:00:26]} 18. O-O-O {[%emt 0:01:23]} Nxc4 {[%emt 0:02:02]} 19. Qd3 {[%emt 0:03:37]} d5 {[%emt 0:03:14]} 20. Nfxd5 {[%emt 0:04:40]} exd5 {[%emt 0:01:52]} 21. Qxd5 {[%emt 0:00:06]} Be6 {[%emt 0:05:51]} 22. Qb5+ {[%emt 0:01:51]} Kf7 {[%emt 0:00:01]} 23. Qxb4 {[%emt 0:00:20]} Kg6 {[%emt 0:01:44]} 24. Rh1 {[%emt 0:02:33]} a5 {[%emt 0:01:54]} 25. Qxb7 {[%emt 0:01:43]} Bf7 {[%emt 0:00:22]} 26. Nd5 {[%emt 0:09:56]} Qe5 {[%emt 0:01:03]} 27. Qc6+ {[%emt 0:01:09]} Be6 {[%emt 0:00:59]} 28. Qxe6+ {[%emt 0:02:42]} Qxe6 {[%emt 0:00:13]} 29. Nf4+ {[%emt 0:00:03]} Kf7 {[%emt 0:00:11]} 30. Rh7+ {[%emt 0:01:21]} 1-0

[Event "FIDE WCCC Open-10 2024"]
[Site "Montesilvano"]
[Date "2024.11.22"]
[Round "7.16"]
[White "Novac, Daniil"]
[Black "Orsi, Andrea"]
[Result "0-1"]
[Annotator "NA RC"]
[ECO "D55"]
[WhiteElo "1594"]
[BlackElo "1728"]
[PlyCount "132"]
[EventDate "2024.11.18"]
[EventType "swiss"]
[EventCountry "ITA"]
[SourceTitle "playchess.com"]
[Source "ChessBase"]
[SourceQuality "1"]
[TimeControl "5400+30"]

1. d4 {[%emt 0:00:01]} d5 {[%emt 0:00:04]} 2. c4 {[%emt 0:00:05]} e6 {[%emt 0:00:07]} 3. Nc3 {[%emt 0:00:07]} Nf6 {[%emt 0:00:04]} 4. cxd5 {[%emt 0:00:05]} exd5 {[%emt 0:00:11]} 5. Bg5 {[%emt 0:00:11]} Be7 {[%emt 0:00:10]} 6. e3 {[%emt 0:00:35]} O-O {[%emt 0:00:15]} 7. Bd3 {[%emt 0:02:10]} b6 {[%emt 0:01:32]} 8. Qc2 {[%emt 0:02:57]} Nbd7 {[%emt 0:04:07]} 9. Nf3 {[%emt 0:04:28]} Bb7 {[%emt 0:04:00]} 10. O-O {[%emt 0:05:22]} c5 {[%emt 0:03:45]} 11. Ne5 {[%emt 0:19:42]} h6 {[%emt 0:29:11]} 12. Nxd7 {[%emt 0:00:49]} Qxd7 {[%emt 0:06:55]} 13. Bf5 {[%emt 0:01:39]} Qc6 {[%emt 0:02:43]} 14. Bh4 {[%emt 0:13:01]} Rfe8 {[%emt 0:08:14]} 15. Ne2 {[%emt 0:04:46]} Ne4 {[%emt 0:07:35]} 16. Bxe7 {[%emt 0:42:32]} Rxe7 {[%emt 0:00:23]} 17. Bxe4 {[%emt 0:00:00]} dxe4 {[%emt 0:04:32]} 18. Rac1 {[%emt 0:00:00]} Rc8 {[%emt 0:03:06]} 19. Rfd1 {[%emt 0:00:00]} Ba6 {[%emt 0:03:36]} 20. Ng3 {[%emt 0:00:00]} Bd3 {[%emt 0:02:41]} 21. Qc3 {[%emt 0:00:00]} Qg6 {[%emt 0:01:04]} 22. dxc5 {[%emt 0:00:00]} Rxc5 {[%emt 0:02:45]} 23. Qd4 {[%emt 0:00:00]} Rce5 {[%emt 0:01:16]} 24. Rc8+ {[%emt 0:00:00]} Kh7 {[%emt 0:02:15]} 25. Rdc1 {[%emt 0:00:00]} Qe6 {[%emt 0:05:09]} 26. b3 {[%emt 0:00:00]} Rd5 {[%emt 0:00:25]} 27. Qc3 {[%emt 0:00:00]} Red7 {[%emt 0:02:39]} 28. Rc6 {[%emt 0:00:00]} Bb5 {[%emt 0:00:51]} 29. Rxe6 {[%emt 0:00:00]} Rd1+ {[%emt 0:02:49]} 30. Qe1 {[%emt 0:00:00]} Rxe1+ {[%emt 0:01:01]} 31. Rxe1 {[%emt 0:00:00]} fxe6 {[%emt 0:00:06]} 32. Nxe4 {[%emt 0:00:00]} Bc6 {[%emt 0:00:39]} 33. Ng3 {[%emt 0:00:00]} Rd2 {[%emt 0:00:07]} 34. Rc1 {[%emt 0:00:00]} Bb5 {[%emt 0:00:12]} 35. a4 {[%emt 0:00:00]} Ba6 {[%emt 0:03:31]} 36. h3 {[%emt 0:00:00]} Rb2 {[%emt 0:00:00]} 37. Rc7 {[%emt 0:00:00]} Rxb3 {[%emt 0:00:00]} 38. Rxa7 {[%emt 0:00:00]} Bc4 {[%emt 0:00:00]} 39. Rb7 {[%emt 0:00:00]} Bd5 {[%emt 0:00:00]} 40. Rb8 {[%emt 0:00:00]} Rb4 {[%emt 0:00:00]} 41. e4 {[%emt 0:00:20]} Bc6 {[%emt 0:00:47]} 42. Kf1 {[%emt 0:01:53]} Bxa4 {[%emt 0:00:05]} 43. Ke2 {[%emt 0:00:35]} Kg6 {[%emt 0:00:40]} 44. Kd3 {[%emt 0:01:01]} b5 {[%emt 0:00:46]} 45. Ra8 {[%emt 0:02:03]} Rc4 {[%emt 0:00:45]} 46. f3 {[%emt 0:03:03]} Bc2+ {[%emt 0:00:08]} 47. Kd2 {[%emt 0:00:11]} b4 {[%emt 0:00:13]} 48. Rb8 {[%emt 0:00:37]} b3 {[%emt 0:00:18]} 49. Nf1 {[%emt 0:00:29]} Rd4+ {[%emt 0:00:13]} 50. Kc3 {[%emt 0:00:55]} Rd3+ {[%emt 0:00:09]} 51. Kb2 {[%emt 0:00:13]} Rd1 {[%emt 0:01:01]} 52. Ne3 {[%emt 0:00:24]} Rd2 {[%emt 0:02:09]} 53. Nxc2 {[%emt 0:00:51]} bxc2 {[%emt 0:00:13]} 54. Rc8 {[%emt 0:00:23]} Rxg2 {[%emt 0:00:03]} 55. Rxc2 {[%emt 0:00:08]} Rxc2+ {[%emt 0:00:16]} 56. Kxc2 {[%emt 0:00:06]} Kg5 {[%emt 0:00:02]} 57. Kd3 {[%emt 0:00:42]} Kf4 {[%emt 0:00:43]} 58. Ke2 {[%emt 0:00:25]} e5 {[%emt 0:00:11]} 59. Kf2 {[%emt 0:00:18]} g5 {[%emt 0:00:32]} 60. Kg2 {[%emt 0:02:35]} Ke3 {[%emt 0:00:08]} 61. Kg3 {[%emt 0:00:52]} h5 {[%emt 0:00:06]} 62. h4 {[%emt 0:00:51]} gxh4+ {[%emt 0:00:09]} 63. Kxh4 {[%emt 0:00:27]} Kxf3 {[%emt 0:00:08]} 64. Kxh5 {[%emt 0:00:08]} Kxe4 {[%emt 0:00:05]} 65. Kg4 {[%emt 0:00:08]} Ke3 {[%emt 0:00:15]} 66. Kg3 {[%emt 0:00:17]} e4 {[%emt 0:00:15]} 0-1

[Event "FIDE WCCC Open-10 2024"]
[Site "Montesilvano"]
[Date "2024.11.22"]
[Round "7.17"]
[White "Mirzhanov, Arlan"]
[Black "Ejsymont, Eryk"]
[Result "1-0"]
[Annotator "NA RC"]
[ECO "B12"]
[WhiteElo "1721"]
[BlackElo "1910"]
[PlyCount "115"]
[EventDate "2024.11.18"]
[EventType "swiss"]
[EventCountry "ITA"]
[SourceTitle "playchess.com"]
[Source "ChessBase"]
[SourceQuality "1"]
[TimeControl "5400+30"]

1. e4 {[%emt 0:00:15]} c6 {[%emt 0:00:00]} 2. d4 {[%emt 1:31:15]} d5 3. e5 {[%emt 0:00:00]} Bf5 {[%emt 0:00:02]} 4. h4 {[%emt 0:00:00]} h5 $11 {[%emt 0:00:06]} 5. Bd3 {[%emt 0:00:00]} Bxd3 {[%emt 0:00:01]} 6. Qxd3 {[%emt 0:00:00]} Qa5+ {[%emt 0:00:12]} 7. b4 {[%emt 0:00:00]} Qa6 {[%emt 0:04:50]} 8. e6 {[%emt 0:00:00]} Qxd3 {[%emt 0:00:18]} 9. cxd3 {[%emt 0:00:00]} Na6 {[%emt 0:03:45]} 10. exf7+ {[%emt 0:00:00]} Kxf7 {[%emt 0:00:01]} 11. a3 {[%emt 0:00:00]} Nf6 {[%emt 0:06:45]} 12. Nf3 {[%emt 0:00:00]} Re8 {[%emt 0:04:45]} 13. Bf4 {[%emt 0:00:00]} Nb8 {[%emt 0:02:08]} 14. Kd2 {[%emt 0:00:00]} Nbd7 {[%emt 0:02:35]} 15. Re1 {[%emt 0:00:00]} g6 {[%emt 0:01:55]} 16. Kc3 {[%emt 0:00:00]} Nh7 {[%emt 0:03:27]} 17. Nbd2 {[%emt 0:00:00]} Bg7 {[%emt 0:00:34]} 18. Be5 {[%emt 0:00:00]} b6 {[%emt 0:04:31]} 19. Nb3 {[%emt 0:00:00]} Bxe5 {[%emt 0:03:31]} 20. dxe5 {[%emt 0:00:00]} e6 {[%emt 0:00:50]} 21. Nfd4 {[%emt 0:00:00]} a6 {[%emt 0:01:59]} 22. Kd2 {[%emt 0:00:00]} c5 {[%emt 0:03:08]} 23. bxc5 {[%emt 0:00:00]} bxc5 {[%emt 0:00:06]} 24. Nc6 {[%emt 0:00:00]} Rc8 {[%emt 0:01:19]} 25. Nba5 {[%emt 0:00:00]} Rc7 {[%emt 0:09:58]} 26. d4 {[%emt 0:00:00]} Rhc8 {[%emt 0:03:47]} 27. Rab1 {[%emt 0:00:00]} g5 {[%emt 0:15:37]} 28. Rb7 {[%emt 0:00:00]} cxd4 {[%emt 0:07:52]} 29. Reb1 {[%emt 0:00:00]} Nc5 {[%emt 0:02:05]} 30. Rxc7+ {[%emt 0:00:00]} Rxc7 {[%emt 0:00:47]} 31. f3 {[%emt 0:00:00]} gxh4 {[%emt 0:01:44]} 32. Nxd4 {[%emt 0:00:00]} Nd7 {[%emt 0:06:15]} 33. Nac6 {[%emt 0:00:00]} Ng5 {[%emt 0:01:28]} 34. Ke3 {[%emt 0:00:00]} Nf8 {[%emt 0:05:00]} 35. f4 {[%emt 0:00:00]} Ne4 {[%emt 0:00:32]} 36. Rb8 {[%emt 0:00:00]} Nd7 {[%emt 0:03:20]} 37. Rh8 {[%emt 0:00:00]} Nec5 {[%emt 0:03:16]} 38. Nd8+ {[%emt 0:00:00]} Kg6 {[%emt 0:00:28]} 39. N8xe6 {[%emt 0:00:00]} Nxe6 {[%emt 0:00:01]} 40. Nxe6 {[%emt 0:00:00]} Rc6 {[%emt 0:01:00]} 41. f5+ {[%emt 0:00:00]} Kf7 {[%emt 0:00:24]} 42. Nd8+ {[%emt 0:00:00]} Kg7 {[%emt 0:00:02]} 43. Nxc6 {[%emt 0:00:00]} Kxh8 {[%emt 0:00:01]} 44. Kd4 {[%emt 0:00:00]} Nb6 {[%emt 0:00:47]} 45. Kc5 {[%emt 0:00:00]} Nc4 {[%emt 0:00:11]} 46. Kxd5 {[%emt 0:01:45]} Ne3+ {[%emt 0:00:04]} 47. Ke6 {[%emt 0:01:23]} Nxg2 {[%emt 0:01:03]} 48. Kf7 {[%emt 0:01:10]} Ne3 {[%emt 0:00:51]} 49. Nd4 {[%emt 0:01:47]} h3 {[%emt 0:00:23]} 50. e6 {[%emt 0:00:05]} Nd5 {[%emt 0:01:15]} 51. Nf3 {[%emt 0:00:08]} h4 {[%emt 0:01:01]} 52. f6 {[%emt 0:00:23]} Kh7 {[%emt 0:00:00]} 53. e7 {[%emt 0:00:13]} Nc7 {[%emt 0:00:00]} 54. Ng5+ {[%emt 0:00:18]} Kh8 {[%emt 0:00:30]} 55. Nxh3 {[%emt 0:01:26]} a5 {[%emt 0:00:06]} 56. Kg6 {[%emt 0:00:09]} Ne8 {[%emt 0:01:19]} 57. f7 {[%emt 0:00:10]} a4 {[%emt 0:00:33]} 58. f8=R# {[%emt 0:00:16]} 1-0

[Event "FIDE WCCC Open-10 2024"]
[Site "Montesilvano"]
[Date "2024.11.22"]
[Round "7.17"]
[White "Enkhbileg, Gantumur"]
[Black "Ostapenko, Volodymyr"]
[Result "0-1"]
[Annotator "NA RC"]
[ECO "C54"]
[WhiteElo "1529"]
[BlackElo "1720"]
[PlyCount "73"]
[EventDate "2024.11.18"]
[EventType "swiss"]
[EventCountry "ITA"]
[SourceTitle "playchess.com"]
[Source "ChessBase"]
[SourceQuality "1"]
[TimeControl "5400+30"]

1. e4 {[%emt 0:00:10]} e5 {[%emt 0:00:06]} 2. Nf3 {[%emt 0:00:27]} Nc6 {[%emt 0:00:05]} 3. Bc4 {[%emt 0:00:10]} Nf6 {[%emt 0:00:08]} 4. d3 {[%emt 0:02:12]} Bc5 {[%emt 0:00:13]} 5. c3 {[%emt 0:00:14]} d6 {[%emt 0:01:16]} 6. a4 {[%emt 0:00:13]} a6 {[%emt 0:00:48]} 7. O-O {[%emt 0:00:17]} h6 {[%emt 0:01:14]} 8. Nbd2 {[%emt 0:00:47]} Be6 {[%emt 1:30:40]} 9. Bxe6 {[%emt 0:00:24]} fxe6 10. Re1 {[%emt 0:00:24]} O-O {[%emt 0:00:00]} 11. Nf1 {[%emt 0:00:23]} Qe7 {[%emt 0:00:00]} 12. Ng3 {[%emt 0:00:51]} Rae8 {[%emt 0:00:00]} 13. Nh4 {[%emt 0:00:24]} Kh7 {[%emt 0:00:00]} 14. Nf3 {[%emt 0:01:18]} Qd7 {[%emt 0:00:00]} 15. b4 {[%emt 0:00:59]} Bb6 {[%emt 0:00:00]} 16. Qc2 {[%emt 0:02:43]} Ne7 {[%emt 0:00:00]} 17. d4 {[%emt 0:01:05]} Ng6 {[%emt 0:00:00]} 18. Ba3 {[%emt 0:08:34]} Rf7 {[%emt 0:00:00]} 19. Rad1 {[%emt 0:05:44]} Qc8 {[%emt 0:00:00]} 20. dxe5 {[%emt 0:06:35]} Ng4 {[%emt 0:00:00]} 21. Rf1 {[%emt 0:07:35]} N6xe5 {[%emt 0:00:00]} 22. h3 {[%emt 0:15:28]} Nxf3+ {[%emt 0:00:00]} 23. gxf3 {[%emt 0:00:09]} Ne5 {[%emt 0:00:00]} 24. Kg2 {[%emt 0:08:59]} Rxf3 {[%emt 0:00:00]} 25. Bb2 {[%emt 0:16:49]} Ref8 {[%emt 0:00:00]} 26. Rd2 {[%emt 0:01:54]} Nc4 {[%emt 0:00:00]} 27. Re2 {[%emt 0:01:31]} Nxb2 {[%emt 0:00:00]} 28. Qxb2 {[%emt 0:01:40]} Kh8 {[%emt 0:00:00]} 29. c4 {[%emt 0:05:24]} R3f7 {[%emt 0:00:00]} 30. Qc2 {[%emt 0:01:57]} Bd4 {[%emt 0:00:00]} 31. Qd2 {[%emt 0:01:55]} Be5 {[%emt 0:00:00]} 32. Ree1 {[%emt 0:01:47]} Qd8 {[%emt 0:00:00]} 33. Ne2 {[%emt 0:04:05]} Rf3 {[%emt 0:00:00]} 34. b5 {[%emt 0:02:39]} Qh4 {[%emt 0:00:00]} 35. Ng1 {[%emt 0:01:13]} Rxh3 {[%emt 0:00:00]} 36. Nxh3 {[%emt 0:00:59]} Qg4+ {[%emt 0:00:00]} 37. Kh1 {[%emt 0:00:30]} 0-1

[Event "FIDE WCCC Open-10 2024"]
[Site "Montesilvano"]
[Date "2024.11.22"]
[Round "7.18"]
[White "Mutyalapati, Modith Aaroh"]
[Black "Seo, Juwon"]
[Result "1/2-1/2"]
[Annotator "NA RC"]
[ECO "B47"]
[WhiteElo "1893"]
[BlackElo "1721"]
[PlyCount "95"]
[EventDate "2024.11.18"]
[EventType "swiss"]
[EventCountry "ITA"]
[SourceTitle "playchess.com"]
[Source "ChessBase"]
[SourceQuality "1"]
[TimeControl "5400+30"]

1. e4 {[%emt 0:00:11]} c5 {[%emt 0:00:08]} 2. Nf3 {[%emt 0:00:08]} e6 {[%emt 0:01:15]} 3. d4 {[%emt 0:00:15]} cxd4 {[%emt 0:00:07]} 4. Nxd4 {[%emt 0:00:05]} Nc6 {[%emt 0:00:09]} 5. Nc3 {[%emt 0:00:10]} Qc7 {[%emt 0:00:07]} 6. Qd3 {[%emt 0:00:06]} a6 {[%emt 0:01:15]} 7. Nxc6 {[%emt 0:00:08]} bxc6 {[%emt 0:00:39]} 8. Qg3 {[%emt 0:00:05]} Qxg3 {[%emt 0:03:48]} 9. hxg3 {[%emt 0:01:34]} Bb4 {[%emt 0:08:14]} 10. Bd2 {[%emt 0:01:23]} Nf6 {[%emt 0:10:11]} 11. Bd3 {[%emt 0:03:15]} d6 {[%emt 0:17:42]} 12. a3 {[%emt 0:07:08]} Ba5 {[%emt 0:05:09]} 13. b4 {[%emt 0:04:26]} Bb6 {[%emt 0:01:29]} 14. Na4 {[%emt 0:03:39]} Ba7 {[%emt 0:01:51]} 15. c4 {[%emt 0:02:44]} Bd4 {[%emt 0:07:59]} 16. Bc3 {[%emt 0:00:06]} Bxc3+ {[%emt 0:00:29]} 17. Nxc3 {[%emt 0:00:02]} Rb8 {[%emt 0:05:15]} 18. Ke2 {[%emt 0:01:33]} Ke7 {[%emt 0:06:39]} 19. Rab1 {[%emt 0:04:45]} Rd8 {[%emt 0:02:47]} 20. e5 {[%emt 0:12:57]} dxe5 {[%emt 0:01:40]} 21. Ne4 {[%emt 0:00:25]} h6 {[%emt 0:03:17]} 22. c5 {[%emt 0:01:24]} Nxe4 {[%emt 0:01:35]} 23. Bxe4 {[%emt 0:00:07]} Bb7 {[%emt 0:00:14]} 24. Rhd1 {[%emt 0:02:44]} f5 {[%emt 0:05:40]} 25. Bc2 {[%emt 0:02:28]} Ba8 {[%emt 0:03:00]} 26. Bd3 {[%emt 0:03:45]} Bb7 {[%emt 0:00:25]} 27. Bc4 {[%emt 0:00:22]} Rbc8 {[%emt 0:07:00]} 28. Rxd8 {[%emt 0:00:30]} Rxd8 {[%emt 0:00:07]} 29. Rd1 {[%emt 0:00:08]} Rxd1 {[%emt 0:01:03]} 30. Kxd1 {[%emt 0:00:01]} e4 {[%emt 0:00:25]} 31. Ke2 {[%emt 0:00:08]} Kf6 {[%emt 0:00:30]} 32. a4 {[%emt 0:00:39]} Ke5 {[%emt 0:00:53]} 33. f3 {[%emt 0:00:48]} exf3+ {[%emt 0:02:15]} 34. gxf3 {[%emt 0:00:26]} g5 {[%emt 0:00:19]} 35. f4+ {[%emt 0:00:09]} gxf4 {[%emt 0:00:45]} 36. gxf4+ {[%emt 0:00:04]} Kxf4 {[%emt 0:00:39]} 37. Bxe6 {[%emt 0:00:41]} Ke4 {[%emt 0:01:59]} 38. Kd2 {[%emt 0:00:32]} h5 {[%emt 0:00:33]} 39. Bc4 {[%emt 0:05:32]} f4 {[%emt 0:01:05]} 40. Bf1 {[%emt 0:00:10]} Bc8 {[%emt 0:00:39]} 41. Ke2 {[%emt 0:01:27]} f3+ {[%emt 0:00:48]} 42. Kf2 {[%emt 0:00:05]} h4 {[%emt 0:00:10]} 43. b5 {[%emt 0:00:24]} axb5 {[%emt 0:01:46]} 44. axb5 {[%emt 0:00:34]} h3 {[%emt 0:00:00]} 45. bxc6 {[%emt 0:00:27]} h2 {[%emt 0:00:20]} 46. Bg2 {[%emt 0:00:05]} fxg2 {[%emt 0:00:32]} 47. Kxg2 {[%emt 0:00:06]} Kd5 {[%emt 0:00:12]} 48. Kxh2 {[%emt 0:00:05]} 1/2-1/2

[Event "FIDE WCCC Open-10 2024"]
[Site "Montesilvano"]
[Date "2024.11.22"]
[Round "7.18"]
[White "Veber, Tibor"]
[Black "Sahin, Yusuf Kerem"]
[Result "0-1"]
[Annotator "NA RC"]
[ECO "B34"]
[WhiteElo "1532"]
[BlackElo "1720"]
[PlyCount "62"]
[EventDate "2024.11.18"]
[EventType "swiss"]
[EventCountry "ITA"]
[SourceTitle "playchess.com"]
[Source "ChessBase"]
[SourceQuality "1"]
[TimeControl "5400+30"]

1. e4 {[%emt 0:00:02]} c5 {[%emt 0:00:30]} 2. Nf3 {[%emt 0:00:54]} d6 {[%emt 0:00:05]} 3. d4 {[%emt 0:01:28]} cxd4 {[%emt 0:00:21]} 4. Nxd4 {[%emt 0:01:10]} Nf6 {[%emt 0:00:11]} 5. Nc3 {[%emt 0:00:54]} g6 {[%emt 0:00:21]} 6. Bd3 {[%emt 0:02:05]} Bg7 {[%emt 0:01:32]} 7. O-O {[%emt 0:02:24]} O-O {[%emt 0:01:05]} 8. Nb3 {[%emt 0:04:15]} Nc6 {[%emt 0:03:48]} 9. h3 {[%emt 0:07:16]} Be6 {[%emt 0:04:03]} 10. Be3 {[%emt 0:07:17]} a6 {[%emt 0:04:20]} 11. f4 {[%emt 0:07:29]} b5 {[%emt 0:09:57]} 12. a3 {[%emt 0:05:01]} Bxb3 {[%emt 0:06:27]} 13. cxb3 {[%emt 0:00:51]} d5 {[%emt 0:00:13]} 14. e5 {[%emt 0:03:04]} d4 {[%emt 0:01:49]} 15. exf6 {[%emt 0:03:24]} Bxf6 {[%emt 0:00:30]} 16. Ne4 {[%emt 0:05:04]} dxe3 {[%emt 0:00:19]} 17. Nxf6+ {[%emt 0:00:25]} exf6 {[%emt 0:00:06]} 18. Be2 {[%emt 0:07:45]} Qd4 {[%emt 0:03:14]} 19. Qc2 {[%emt 0:03:03]} Rac8 {[%emt 0:01:03]} 20. Rac1 {[%emt 0:01:35]} Qb6 {[%emt 0:02:19]} 21. Kh2 {[%emt 0:05:11]} Rfd8 {[%emt 0:03:37]} 22. Rfd1 {[%emt 0:03:26]} Rd4 {[%emt 0:07:11]} 23. Bf3 {[%emt 0:08:52]} Ne7 {[%emt 0:05:32]} 24. Qb1 {[%emt 0:03:36]} Rxc1 {[%emt 0:02:41]} 25. Qxc1 {[%emt 0:00:17]} Rxf4 {[%emt 0:00:34]} 26. Re1 {[%emt 0:01:40]} Nf5 {[%emt 0:00:59]} 27. Qc3 {[%emt 0:02:33]} Qd6 {[%emt 0:00:45]} 28. Kg1 {[%emt 0:01:06]} Rxf3 {[%emt 0:00:55]} 29. Qc8+ {[%emt 0:01:42]} Kg7 {[%emt 0:00:04]} 30. gxf3 {[%emt 0:00:53]} Qg3+ {[%emt 0:00:05]} 31. Kf1 {[%emt 0:00:15]} Qf2# {[%emt 0:00:09]} 0-1

[Event "FIDE WCCC Open-10 2024"]
[Site "Montesilvano"]
[Date "2024.11.22"]
[Round "7.19"]
[White "Park, Jaeik B"]
[Black "Tenuun, Tseesuren"]
[Result "0-1"]
[Annotator "NA RC"]
[ECO "C77"]
[WhiteElo "1872"]
[BlackElo "1702"]
[PlyCount "88"]
[EventDate "2024.11.18"]
[EventType "swiss"]
[EventCountry "ITA"]
[SourceTitle "playchess.com"]
[Source "ChessBase"]
[SourceQuality "1"]
[TimeControl "5400+30"]

1. e4 {[%emt 0:00:04]} e5 {[%emt 0:00:33]} 2. Nf3 {[%emt 0:00:14]} Nc6 {[%emt 0:00:06]} 3. Bb5 {[%emt 0:00:07]} a6 {[%emt 0:00:04]} 4. Ba4 {[%emt 0:00:08]} Nf6 {[%emt 0:00:08]} 5. Qe2 {[%emt 0:00:12]} Be7 {[%emt 0:03:40]} 6. c3 {[%emt 0:01:16]} b5 {[%emt 0:02:59]} 7. Bc2 {[%emt 0:00:38]} d6 {[%emt 0:00:35]} 8. d3 {[%emt 0:00:18]} O-O {[%emt 0:00:19]} 9. O-O {[%emt 0:00:13]} Re8 {[%emt 0:03:07]} 10. Rd1 {[%emt 0:01:04]} Bf8 {[%emt 0:04:32]} 11. Nbd2 {[%emt 0:01:05]} d5 {[%emt 0:01:21]} 12. exd5 {[%emt 0:03:42]} Nxd5 {[%emt 0:00:53]} 13. Nf1 {[%emt 0:01:36]} f5 $11 {[%emt 0:06:22]} 14. Bb3 {[%emt 0:10:29]} Be6 {[%emt 0:24:02]} 15. Nxe5 {[%emt 0:14:06]} Nxe5 {[%emt 0:00:44]} 16. Qxe5 {[%emt 0:00:56]} Bd6 {[%emt 0:01:10]} 17. Qe2 {[%emt 0:01:04]} Qf6 {[%emt 0:07:07]} 18. Qf3 {[%emt 0:03:36]} Qf7 {[%emt 0:03:48]} 19. Ng3 {[%emt 0:04:05]} g6 {[%emt 0:38:30]} 20. Bg5 {[%emt 0:02:35]} Nb6 {[%emt 0:00:00]} 21. Bxe6 {[%emt 0:00:38]} Qxe6 {[%emt 0:00:00]} 22. Bf4 {[%emt 0:02:25]} Rad8 {[%emt 0:00:00]} 23. Qe3 {[%emt 0:02:17]} Qf7 {[%emt 0:00:00]} 24. Qd2 {[%emt 0:01:44]} Na4 {[%emt 0:00:00]} 25. Bxd6 {[%emt 0:01:03]} Rxd6 {[%emt 0:00:00]} 26. Qc2 {[%emt 0:03:18]} Rde6 {[%emt 0:00:00]} 27. b3 {[%emt 0:01:37]} Nb6 {[%emt 0:00:00]} 28. a4 {[%emt 0:03:51]} Nd5 {[%emt 0:00:00]} 29. axb5 {[%emt 0:01:50]} axb5 {[%emt 0:00:00]} 30. h3 {[%emt 0:02:49]} Nf4 {[%emt 0:00:00]} 31. Qa2 {[%emt 0:05:18]} Ne2+ {[%emt 0:00:00]} 32. Nxe2 {[%emt 0:00:16]} Rxe2 {[%emt 0:00:00]} 33. Qa3 {[%emt 0:01:12]} f4 {[%emt 0:00:00]} 34. Qa7 {[%emt 0:05:30]} f3 {[%emt 0:00:24]} 35. Qb7 {[%emt 0:00:25]} fxg2 {[%emt 0:00:50]} 36. Qxg2 {[%emt 0:00:21]} R8e5 {[%emt 0:00:14]} 37. h4 {[%emt 0:02:14]} Rf5 {[%emt 0:01:58]} 38. Rf1 {[%emt 0:01:03]} Rf4 {[%emt 0:00:14]} 39. h5 {[%emt 0:00:52]} Qf5 {[%emt 0:00:30]} 40. Ra8+ {[%emt 0:02:32]} Kg7 {[%emt 0:00:28]} 41. h6+ {[%emt 0:00:22]} Kxh6 {[%emt 0:00:36]} 42. Qh2+ {[%emt 0:00:14]} Kg7 {[%emt 0:00:13]} 43. Ra7 {[%emt 0:01:55]} Rg4+ {[%emt 0:00:23]} 44. Kh1 {[%emt 0:00:11]} Qf3+ {[%emt 0:00:04]} 0-1